bitfinex/quotes_ETHUSD_20250623
["timestamp","ask_amount","ask_price","bid_price","bid_amount"]
[1750706526880,0.7662,2306.7,2306.4,4.33566477]
[1750706527250,0.7662,2306.7,2306.1,7.292]
[1750706527251,0.7662,2306.7,2306.5,4.33555176]
[1750706527563,0.7662,2306.7,2306.1,7.292]
[1750706527882,1.02991359,2307.1,2306.1,7.292]
[1750706527883,1.959,2306.9,2306.3,4.33594935]
[1750706528059,1.959,2306.9,2306.4,4.33572574]
[1750706528469,11.959,2306.9,2306.5,4.33549506]
[1750706528671,11.959,2306.9,2306.5,4.33540036]
[1750706528870,11.959,2306.9,2306.4,4.33565654]
[1750706529078,11.959,2306.9,2306.3,4.33584085]
[1750706529263,13.23539,2306.9,2306.3,4.33584085]
[1750706530893,13.23539,2306.9,2306.3,4.33592044]
[1750706531770,13.23539,2306.9,2306.4,4.33576081]
[1750706532588,13.23539,2306.9,2306.3,4.33587153]
[1750706532989,11.959,2306.9,2306.3,4.33594935]
[1750706533158,11.959,2306.9,2306.5,4.33549401]
[1750706533582,11.959,2306.8,2306.5,4.33549401]
[1750706533818,1.959,2306.8,2306.4,4.33565548]
[1750706533980,0.8233,2306.7,2306.3,4.33585665]
[1750706534179,0.8233,2306.7,2306.4,4.33575121]
[1750706534904,27.22242214,2307.7,2306.6,4.33538541]
[1750706535108,0.8233,2307.5,2306.9,4.33470677]
[1750706535313,2.34055598,2307.4,2306.9,4.33470677]
[1750706535510,2.34055598,2307.4,2306.8,4.3349269]
[1750706535725,11.959,2307.4,2306.9,4.33481701]
[1750706535925,10.0,2307.4,2307.0,4.33461055]
[1750706536132,1.959,2307.3,2307.0,4.33461055]
[1750706536298,0.8233,2307.2,2306.1,5.11552539]
[1750706536501,0.8233,2307.1,2306.1,12.40752539]
[1750706536690,0.8233,2307.1,2306.4,4.33557941]
[1750706537191,10.8233,2307.1,2306.4,4.3357153]
[1750706537396,0.8233,2307.1,2306.5,4.33555965]
[1750706537585,0.8233,2307.1,2306.4,4.33569948]
[1750706537794,1.85716748,2307.1,2306.5,4.3354739]
[1750706538031,1.18571675,2307.0,2306.4,4.33565518]
[1750706538190,1.18571675,2307.0,2306.4,4.33561118]
[1750706538392,1.85716748,2307.1,2306.5,4.33554838]
[1750706538933,0.8233,2307.1,2306.6,4.3353804]
[1750706539293,1.85723077,2307.1,2306.5,4.33546327]
[1750706539484,1.85723077,2307.1,2306.6,4.33531217]
[1750706539688,0.8233,2307.1,2306.6,4.33531217]
[1750706539917,0.8233,2307.1,2306.7,4.33519522]
[1750706540093,2.7823,2307.1,2306.8,4.33489964]
[1750706541132,0.8233,2307.1,2306.9,4.33465397]
[1750706541318,0.8233,2307.1,2306.8,4.33487178]
[1750706541715,0.8233,2307.1,2306.8,4.33485641]
[1750706542033,0.8233,2307.1,2306.7,4.33508093]
[1750706542401,0.8233,2307.1,2306.8,4.33490586]
[1750706542738,0.8233,2307.1,2306.8,4.33493036]
[1750706543121,0.8233,2307.1,2306.9,4.33479961]
[1750706543445,0.8233,2307.1,2306.7,4.33511337]
[1750706543647,0.8233,2307.1,2306.5,5.1395468]
[1750706543881,0.8233,2307.1,2306.5,5.13943949]
[1750706544080,0.8233,2307.1,2306.5,4.33543111]
[1750706544282,0.8233,2307.1,2306.7,4.33507284]
[1750706544584,0.8233,2307.1,2306.3,4.33594935]
[1750706544857,0.8233,2307.1,2306.7,4.33504735]
[1750706545034,0.8233,2307.1,2306.9,4.33479404]
[1750706545563,0.8233,2307.1,2306.6,5.10190628]
[1750706545920,0.8233,2307.1,2306.8,4.33489291]
[1750706546122,0.8233,2307.1,2306.7,4.33509592]
[1750706546736,0.8233,2307.1,2306.8,4.33496533]
[1750706547137,0.8233,2307.1,2306.9,4.3346753]
[1750706547654,0.8233,2307.1,2306.8,4.3349423]
[1750706547855,0.8233,2307.1,2306.7,4.33511147]
[1750706548041,0.8233,2307.1,2306.8,4.33500017]
[1750706548734,0.8233,2307.1,2306.7,4.33510925]
[1750706549057,0.8233,2307.1,2306.9,4.33481123]
[1750706549821,0.8233,2307.1,2306.3,2.7396]
[1750706550121,0.8233,2307.1,2306.4,7.29]
[1750706550334,0.8233,2307.1,2307.0,4.33463372]
[1750706550657,0.8233,2307.1,2306.9,4.33470781]
[1750706552187,0.814,2307.6,2307.4,4.33377977]
[1750706552455,10.814,2307.6,2307.2,4.33413878]
[1750706552628,0.814,2307.6,2307.2,4.33411068]
[1750706552822,0.814,2307.6,2307.3,4.33404847]
[1750706553023,10.814,2307.6,2307.3,4.33404847]
[1750706553238,10.814,2307.6,2307.2,4.33414953]
[1750706553865,10.814,2307.6,2307.1,4.33433558]
[1750706554164,0.7978,2307.5,2307.1,4.33433558]
[1750706554358,0.7978,2307.5,2307.1,4.33443503]
[1750706555266,0.7978,2307.5,2306.7,12.4197505]
[1750706555572,0.7978,2307.5,2307.1,4.33432125]
[1750706555727,0.7978,2307.5,2307.2,4.33423312]
[1750706556379,0.7978,2307.5,2307.1,4.33433837]
[1750706556670,0.7978,2307.5,2307.2,4.33425243]
[1750706557677,0.7978,2307.5,2307.1,4.33433133]
[1750706557833,0.7978,2307.5,2307.0,4.33452909]
[1750706558034,0.7978,2307.5,2307.1,4.33439178]
[1750706558335,0.7978,2307.5,2307.1,4.33431048]
[1750706560303,0.7978,2307.5,2307.2,4.33423806]
[1750706560706,0.7978,2307.5,2307.1,4.33433162]
[1750706560913,0.7978,2307.5,2307.0,4.33453032]
[1750706561261,2.31708,2307.5,2306.5,4.33555336]
[1750706561478,0.8294,2307.4,2306.9,4.33474939]
[1750706561811,0.8294,2307.4,2307.0,4.33462936]
[1750706561977,2.7864,2307.4,2307.0,4.33462936]
[1750706562372,2.7864,2307.4,2307.1,4.33442647]
[1750706563002,2.7864,2307.4,2307.2,4.33424908]
[1750706563294,2.7864,2307.4,2307.0,4.33454016]
[1750706564683,2.7864,2307.4,2306.9,4.33472298]
[1750706565069,0.8231,2307.2,2306.7,4.33509873]
[1750706565292,1.8586266,2307.2,2306.2,0.7967]
[1750706565460,10.8231,2307.1,2306.5,4.33556399]
[1750706565803,0.8231,2307.0,2306.4,4.3356807]
[1750706566018,1.957,2306.9,2306.4,4.3356807]
[1750706566878,1.957,2306.9,2306.3,4.33594935]
[1750706567210,1.957,2306.9,2306.6,4.33530484]
[1750706569471,1.957,2306.9,2306.5,4.33546595]
[1750706570708,1.957,2306.9,2306.5,4.3354103]
[1750706571209,0.7832,2306.8,2306.1,4.33632147]
[1750706571516,0.7832,2306.8,2306.6,4.33535882]
[1750706571887,0.7832,2306.8,2306.6,4.33524514]
[1750706572076,0.7832,2306.8,2306.7,4.33519746]
[1750706573170,2.7642,2307.0,2306.7,4.33503816]
[1750706573371,2.7642,2307.0,2306.8,4.33494137]
[1750706573710,0.8072,2307.0,2306.9,4.33482162]
[1750706573871,0.8072,2307.0,2306.8,4.33491719]
[1750706575168,2.08362,2307.0,2306.5,4.33547107]
[1750706575373,0.8267,2306.9,2306.5,4.33547107]
[1750706575883,0.8267,2306.9,2306.4,4.33567407]
[1750706576474,0.8267,2306.9,2306.5,4.33556225]
[1750706577599,0.8267,2306.9,2306.6,4.33529656]
[1750706578406,0.8267,2306.9,2306.6,8.67057526]
[1750706578621,0.8267,2306.9,2306.7,4.33519578]
[1750706578828,0.8267,2306.9,2306.7,4.33399578]
[1750706578992,0.8267,2306.9,2306.6,4.33532943]
[1750706579328,0.8267,2306.9,2306.5,4.33548595]
[1750706580352,0.8267,2306.9,2306.4,4.3356728]
[1750706580491,0.8297,2306.6,2305.7,4.33700406]
[1750706580687,0.8297,2306.4,2305.4,0.8159]
[1750706580918,8.1137,2306.4,2305.9,4.33668347]
[1750706581099,9.22372221,2306.4,2305.5,4.33745391]
[1750706581303,0.8126,2306.2,2305.5,4.33745391]
[1750706581507,0.8126,2306.0,2305.3,4.33781067]
[1750706581820,0.8126,2305.8,2305.4,4.3376289]
[1750706582217,0.8126,2305.8,2305.3,4.33775451]
[1750706582593,0.8126,2305.8,2305.7,4.33707767]
[1750706582931,12.7231,2306.2,2305.9,4.33659946]
[1750706583296,12.7231,2306.2,2305.6,16.25642214]
[1750706583497,0.7691,2306.4,2306.2,4.33613736]
[1750706583691,10.416,2306.6,2306.5,4.33557337]
[1750706583921,11.954,2306.8,2306.6,4.33534323]
[1750706584122,0.7691,2306.9,2306.7,4.33519746]
[1750706584344,0.7691,2306.9,2306.3,5.09612097]
[1750706584345,1.954,2306.9,2306.3,0.7602]
[1750706584632,0.7691,2306.8,2306.5,4.33555118]
[1750706585297,0.7691,2306.8,2306.4,4.33568245]
[1750706585498,0.7691,2306.8,2306.5,4.33557031]
[1750706585711,0.7691,2306.8,2306.3,4.33594935]
[1750706585936,0.7691,2306.8,2306.5,4.33549408]
[1750706586235,0.7691,2306.8,2306.4,4.335665]
[1750706586833,0.7691,2306.8,2306.3,4.33589819]
[1750706587136,0.7691,2306.8,2306.4,4.33568024]
[1750706587433,0.7691,2306.8,2306.5,4.33556596]
[1750706587729,0.7691,2306.8,2306.4,4.33567441]
[1750706587943,0.7691,2306.8,2306.4,4.33567661]
[1750706588319,0.7691,2306.8,2306.3,4.33585911]
[1750706588526,0.7691,2306.8,2306.3,4.33594506]
[1750706588527,2.04141,2306.8,2306.3,4.33594506]
[1750706589023,2.04141,2306.8,2306.4,4.33561462]
[1750706590435,0.7691,2306.8,2306.4,4.33561462]
[1750706590604,7.282,2306.8,2305.7,0.8287]
[1750706590803,10.7784,2306.7,2305.8,4.33688958]
[1750706590998,10.7784,2306.7,2305.7,0.8287]
[1750706590999,0.7784,2306.7,2306.1,4.33616123]
[1750706591226,1.954,2306.6,2306.2,4.33610799]
[1750706591558,0.7784,2306.7,2306.2,4.33610799]
[1750706591704,1.954,2306.5,2305.7,0.8287]
[1750706592037,0.7784,2306.4,2305.9,4.33661837]
[1750706592234,0.7784,2306.4,2306.0,4.33642359]
[1750706592622,0.7784,2306.4,2306.1,4.33629866]
[1750706592829,0.7784,2306.4,2306.2,4.33611646]
[1750706593026,0.7784,2306.9,2306.2,4.33611646]
[1750706593225,9.9987,2306.7,2306.3,4.33582468]
[1750706593427,9.9987,2306.7,2306.2,4.33613569]
[1750706593604,0.7827,2306.6,2306.2,4.33613569]
[1750706594606,0.7827,2306.6,2305.9,4.33661687]
[1750706595235,0.7827,2306.6,2305.8,4.33680232]
[1750706595419,0.8054,2306.4,2305.8,4.33680232]
[1750706595620,1.954,2306.3,2305.8,4.33680232]
[1750706596020,1.954,2306.3,2305.8,4.33673429]
[1750706596201,1.954,2306.3,2305.9,4.33660774]
[1750706596842,1.954,2306.3,2305.9,4.33656444]
[1750706597151,1.954,2306.3,2305.8,4.33678669]
[1750706597317,1.954,2306.3,2305.8,8.67351194]
[1750706597644,1.954,2306.3,2305.8,4.33672525]
[1750706597945,0.8054,2306.2,2305.5,4.33740949]
[1750706598126,0.8054,2306.2,2305.6,4.33715623]
[1750706598440,0.8054,2306.2,2305.7,4.33699205]
[1750706598604,0.8054,2306.2,2305.6,4.33717439]
[1750706598806,0.8054,2306.1,2305.4,4.3375556]
[1750706599108,0.8054,2306.0,2305.3,0.2]
[1750706599306,0.8054,2306.0,2305.3,4.53773703]
[1750706599526,0.8054,2306.0,2305.3,4.53781197]
[1750706600851,0.8054,2306.0,2305.4,4.33755918]
[1750706601211,0.8054,2306.0,2305.3,4.53771853]
[1750706601423,2.01747468,2306.0,2305.3,4.53771853]
[1750706601741,0.8018,2305.9,2305.3,4.53771853]
[1750706601942,1.954,2305.8,2305.3,0.2]
[1750706603447,11.954,2305.8,2305.3,0.2]
[1750706604124,11.954,2305.8,2305.3,4.53781118]
[1750706604359,11.954,2305.8,2305.4,4.3376305]
[1750706604520,13.35078747,2305.8,2305.3,0.2]
[1750706604932,0.8106,2305.4,2305.3,0.2]
[1750706605165,8.0916,2305.4,2305.3,0.2]
[1750706605664,10.0456,2305.4,2305.3,0.2]
[1750706606464,20.0456,2305.4,2305.3,0.2]
[1750706606666,22.152903,2305.4,2305.3,0.2]
[1750706608366,22.699903,2305.4,2305.3,0.2]
[1750706608610,23.72768721,2305.4,2305.3,0.2]
[1750706608770,22.699903,2305.4,2305.3,0.2]
[1750706608930,23.7271924,2305.4,2305.3,0.2]
[1750706609127,0.55,2305.3,2304.1,0.04]
[1750706609369,0.7818,2304.8,2304.1,0.04]
[1750706609542,0.7818,2304.5,2304.1,0.04]
[1750706610148,11.951,2304.4,2304.1,0.04]
[1750706610353,1.951,2304.4,2304.1,0.04]
[1750706610556,0.7818,2304.7,2304.1,0.8583]
[1750706610727,10.0,2305.0,2304.1,0.8583]
[1750706610934,0.7849,2304.9,2304.3,4.33955087]
[1750706611181,0.7849,2304.9,2304.4,4.33948733]
[1750706611373,11.951,2304.8,2304.4,4.33948733]
[1750706611668,10.0,2304.8,2304.4,4.33948733]
[1750706612067,10.0,2304.8,2304.5,4.33931137]
[1750706612845,12.09099,2304.7,2304.1,4.37997229]
[1750706613080,2.09099,2304.7,2304.1,4.37997433]
[1750706613284,0.791,2304.6,2304.1,0.04]
[1750706613450,10.0,2304.5,2304.1,0.04]
[1750706613653,1.8073,2304.4,2304.1,0.04]
[1750706613870,11.951,2304.5,2304.1,0.04]
[1750706614176,11.951,2304.5,2304.1,4.38007292]
[1750706614357,11.951,2304.5,2304.1,4.37992629]
[1750706614554,1.951,2304.6,2304.1,0.04]
[1750706614758,10.0,2304.7,2304.5,4.33930807]
[1750706614953,10.0,2304.7,2304.6,4.33914779]
[1750706615155,10.0,2304.7,2304.5,4.33922444]
[1750706615758,10.0,2304.7,2304.6,4.33914779]
[1750706615959,10.0,2304.7,2304.5,4.33919263]
[1750706616147,1.951,2304.8,2304.6,4.33904347]
[1750706616975,1.951,2304.8,2304.5,4.33923544]
[1750706617183,1.951,2304.8,2304.4,4.33942844]
[1750706617386,1.951,2304.8,2304.2,5.17015295]
[1750706617553,1.951,2304.8,2304.3,4.33959385]
[1750706618599,1.951,2304.8,2304.4,4.33949911]
[1750706619077,1.951,2304.8,2304.6,4.33902924]
[1750706619664,1.951,2304.8,2304.5,4.33923992]
[1750706620062,1.951,2304.8,2304.4,4.33941598]
[1750706620582,1.951,2304.8,2304.2,0.8304]
[1750706620813,0.8013,2304.7,2304.1,0.04]
[1750706621007,10.8013,2304.5,2304.1,0.04]
[1750706621292,16.25642214,2304.6,2304.1,0.04]
[1750706621293,0.8224,2304.2,2304.1,0.04]
[1750706621596,12.7734,2304.2,2304.1,0.04]
[1750706622367,1.951,2304.6,2304.1,0.04]
[1750706622656,10.5213471,2305.1,2304.8,4.33866639]
[1750706622858,1.951,2305.1,2304.5,0.7788]
[1750706623174,0.7583,2305.5,2304.8,4.33877125]
[1750706623366,10.7583,2305.5,2305.1,4.33820604]
[1750706623572,10.7583,2305.5,2304.7,0.7788]
[1750706623808,10.7583,2305.5,2305.0,4.33830577]
[1750706624182,0.7583,2305.5,2304.9,4.33848922]
[1750706624382,0.7583,2305.5,2305.0,4.33838577]
[1750706624702,0.7583,2305.5,2305.1,4.33818418]
[1750706624857,0.7551,2305.7,2305.2,4.33792476]
[1750706625055,1.951,2305.6,2305.1,5.12603059]
[1750706625286,1.951,2305.6,2305.2,4.33801407]
[1750706625657,1.951,2305.6,2305.1,5.12599698]
[1750706626069,1.951,2305.6,2305.2,4.33797518]
[1750706626364,1.951,2305.6,2305.4,4.33761264]
[1750706626902,2.7061,2305.7,2305.4,4.33761264]
[1750706627397,2.7775,2305.9,2305.4,4.33747727]
[1750706627623,2.7775,2305.9,2305.6,4.33726114]
[1750706627973,1.951,2305.9,2305.7,4.33707335]
[1750706628322,1.951,2305.9,2305.5,5.09146945]
[1750706628489,1.951,2305.9,2305.6,4.33716033]
[1750706628908,1.951,2305.9,2305.7,4.33704333]
[1750706629415,1.951,2305.9,2305.6,4.33716033]
[1750706629416,10.426,2306.1,2305.6,4.33726578]
[1750706629571,0.7781,2306.3,2305.9,4.33659932]
[1750706630009,0.7781,2306.3,2306.0,4.33651084]
[1750706630180,0.752,2306.5,2305.7,0.7977]
[1750706630378,0.752,2306.5,2306.1,4.33631783]
[1750706630615,0.752,2306.5,2306.1,4.33623055]
[1750706631415,0.752,2306.5,2306.2,4.33611978]
[1750706631616,1.951,2306.6,2306.1,4.33622539]
[1750706631819,1.951,2306.6,2306.3,4.33585755]
[1750706632019,1.951,2306.6,2306.1,0.7785]
[1750706632171,2.22753,2306.6,2306.1,5.11471277]
[1750706632370,0.27653,2306.6,2306.2,4.33611444]
[1750706632617,1.951,2306.7,2306.2,4.33611444]
[1750706632912,1.951,2306.7,2306.1,5.11471715]
[1750706633138,0.8143,2306.8,2306.1,5.11480512]
[1750706633272,0.8143,2306.8,2306.5,4.33544779]
[1750706633676,0.8143,2306.8,2306.6,4.33528336]
[1750706633995,0.8143,2306.8,2306.5,4.3354713]
[1750706634615,11.991,2306.9,2306.6,4.33536735]
[1750706634800,15.04203,2306.9,2306.5,4.33549288]
[1750706635515,15.04203,2306.9,2306.5,4.33552646]
[1750706635729,15.04203,2306.9,2306.4,4.33566475]
[1750706636639,0.8024,2306.8,2305.9,0.8028]
[1750706636847,10.0,2306.2,2305.5,0.8028]
[1750706637141,2.7442,2306.1,2305.4,4.33753214]
[1750706637288,2.7442,2306.1,2305.7,4.33698965]
[1750706637493,0.7942,2306.2,2305.7,4.33698965]
[1750706637685,0.7942,2306.2,2305.6,4.33715441]
[1750706637891,1.06862,2306.2,2305.6,4.33715441]
[1750706638114,1.06862,2306.2,2305.7,4.33698455]
[1750706638497,1.06862,2306.2,2305.3,5.09041071]
[1750706638704,1.06862,2306.2,2305.7,4.33693664]
[1750706639043,3.21008521,2306.7,2306.2,4.33605072]
[1750706639044,0.7942,2306.4,2306.2,4.33605072]
[1750706639196,10.8283771,2306.9,2306.5,4.33538828]
[1750706639197,1.949,2306.8,2306.5,4.33538828]
[1750706639531,1.949,2306.8,2306.5,4.33549265]
[1750706639728,1.949,2306.8,2306.6,4.33538528]
[1750706639903,1.949,2306.8,2306.4,4.33567264]
[1750706640111,1.949,2306.8,2306.5,4.33546088]
[1750706640417,1.949,2306.8,2306.3,0.7526]
[1750706640726,1.949,2306.8,2306.4,4.33559767]
[1750706641102,1.949,2306.8,2306.1,4.3362707]
[1750706641307,0.7942,2306.7,2306.2,4.33612585]
[1750706641717,10.04,2306.9,2306.4,4.33561197]
[1750706641921,1.949,2306.8,2306.4,4.33564954]
[1750706642324,1.949,2306.8,2306.3,4.33584317]
[1750706642624,1.949,2306.8,2306.4,4.33568323]
[1750706642944,1.949,2306.8,2306.1,4.33623806]
[1750706643141,4.26982,2306.8,2306.3,4.33593875]
[1750706643460,0.7667,2306.7,2305.9,4.33652968]
[1750706643655,8.0437,2306.7,2305.9,4.33652968]
[1750706643855,8.0437,2306.7,2305.7,0.7711]
[1750706643856,0.7667,2306.5,2305.8,4.33680484]
[1750706645244,0.7667,2306.5,2305.7,4.33704899]
[1750706645245,0.7667,2306.5,2305.7,4.33697264]
[1750706645407,1.07667,2306.4,2305.8,4.3368627]
[1750706645610,1.949,2306.3,2305.8,4.33681466]
[1750706646636,1.949,2306.3,2305.9,4.33668093]
[1750706646813,1.949,2306.3,2305.8,4.33679439]
[1750706647209,1.949,2306.3,2305.9,4.33666542]
[1750706647415,1.949,2306.3,2305.8,4.33679382]
[1750706647613,2.328237,2306.3,2305.8,4.33679382]
[1750706649243,2.328237,2306.3,2305.8,4.33670984]
[1750706649444,2.328237,2306.3,2305.9,4.33669784]
[1750706650206,2.328237,2306.3,2305.9,10.0]
[1750706650406,0.8095,2306.2,2305.9,10.0]
[1750706650618,0.8095,2306.2,2305.6,4.33716367]
[1750706650808,1.2309407,2306.2,2305.7,10.0]
[1750706651032,1.2309407,2306.2,2305.6,4.33716367]
[1750706651345,1.2309407,2306.2,2305.7,10.0]
[1750706651547,23.99376924,2306.6,2306.1,4.33632539]
[1750706651548,8.0778,2306.5,2306.1,4.33632539]
[1750706651706,7.7373471,2306.6,2305.9,0.8076]
[1750706652050,7.7373471,2306.6,2306.4,4.33575073]
[1750706652205,7.7373471,2306.6,2306.5,4.33557337]
[1750706652404,7.7373471,2306.6,2306.0,10.0]
[1750706652618,7.7373471,2306.6,2306.3,4.33585716]
[1750706652903,7.7373471,2306.6,2306.1,4.33632267]
[1750706653100,7.7373471,2306.6,2306.3,4.33584904]
[1750706653416,7.7373471,2306.6,2306.3,4.33586565]
[1750706653630,7.7373471,2306.6,2306.4,4.33575201]
[1750706653802,7.7373471,2306.6,2305.9,5.14429904]
[1750706654005,7.7373471,2306.6,2306.3,4.33583039]
[1750706654204,7.7373471,2306.6,2306.4,4.33573522]
[1750706654403,7.7373471,2306.6,2306.3,4.33587715]
[1750706654615,7.7373471,2306.6,2306.2,4.33603344]
[1750706655342,7.7373471,2306.6,2306.0,4.33647581]
[1750706655524,7.7373471,2306.6,2306.1,4.33621609]
[1750706655727,0.7852,2306.5,2306.1,4.33621609]
[1750706655906,0.7852,2306.5,2306.3,4.33580654]
[1750706656403,0.7852,2306.5,2306.2,4.33605801]
[1750706657022,0.7852,2306.5,2306.1,4.336214]
[1750706657205,0.7852,2306.5,2306.0,4.33639688]
[1750706657427,0.7918,2306.4,2305.8,4.33672366]
[1750706657627,0.7918,2306.4,2305.9,4.33669511]
[1750706658839,0.7918,2306.4,2306.0,4.33643573]
[1750706659046,0.7918,2306.4,2305.5,8.0396]
[1750706659251,0.8175,2306.3,2305.7,4.33706002]
[1750706659407,2.05659337,2306.3,2305.9,4.33669234]
[1750706659608,2.05659337,2306.3,2305.8,4.33677972]
[1750706659810,2.05659337,2306.3,2305.7,4.33697356]
[1750706660320,2.05659337,2306.3,2305.8,4.33686099]
[1750706661833,2.05659337,2306.3,2305.9,4.33668592]
[1750706662014,2.05659337,2306.3,2305.7,4.33700681]
[1750706662452,2.05659337,2306.3,2305.8,4.33688592]
[1750706662611,2.05659337,2306.3,2305.7,4.33698757]
[1750706662948,0.8142,2306.2,2305.6,4.33718499]
[1750706663118,0.8142,2306.2,2305.7,4.33692211]
[1750706663448,0.8142,2306.2,2305.7,4.32696896]
[1750706663629,0.8142,2306.2,2305.6,4.33718499]
[1750706663835,1.89673387,2306.2,2305.6,4.33718499]
[1750706664039,1.89673387,2306.2,2305.7,4.3370533]
[1750706664519,1.89673387,2306.2,2305.8,4.33687954]
[1750706664722,0.8142,2306.2,2305.7,4.33695043]
[1750706665250,0.8142,2306.2,2305.1,0.783]
[1750706665551,0.8248,2305.8,2305.0,8.6766149]
[1750706665762,3.56781789,2305.8,2305.2,4.33800589]
[1750706665954,1.949,2305.7,2305.2,4.33800589]
[1750706666134,1.949,2305.7,2305.1,4.33810441]
[1750706666333,0.8248,2305.6,2304.7,0.783]
[1750706666544,0.8248,2305.6,2304.9,4.33849728]
[1750706667557,0.8248,2305.6,2305.0,4.33827661]
[1750706668123,0.7793,2305.5,2304.8,4.3386836]
[1750706668338,0.7793,2305.5,2304.9,4.33847261]
[1750706669255,0.7793,2305.5,2305.0,4.33838302]
[1750706669460,1.948,2305.4,2304.9,4.33846216]
[1750706669753,0.7793,2305.5,2305.0,4.3382945]
[1750706669955,0.7793,2305.5,2304.9,4.33846216]
[1750706669956,1.948,2305.4,2305.1,4.33818109]
[1750706670253,1.948,2305.4,2305.2,4.33801251]
[1750706670457,1.948,2305.4,2305.1,4.33811565]
[1750706670750,1.948,2305.4,2304.9,4.33857814]
[1750706670751,1.948,2305.4,2305.3,4.33783021]
[1750706670957,1.948,2305.4,2305.0,4.33832091]
[1750706671161,1.948,2305.4,2304.9,4.33858301]
[1750706671344,1.948,2305.4,2305.2,4.33794352]
[1750706671653,1.948,2305.4,2305.1,4.33808194]
[1750706671853,0.7793,2305.5,2305.2,4.33794444]
[1750706672227,0.7793,2305.5,2304.8,8.0622]
[1750706672422,0.7793,2305.5,2304.9,4.33858301]
[1750706672627,0.7793,2305.5,2305.2,4.33791653]
[1750706672823,12.7486,2305.7,2305.2,4.33785089]
[1750706673055,9.6853471,2305.8,2305.5,4.33732739]
[1750706673224,7.7373471,2305.8,2305.5,4.33728946]
[1750706673425,10.42,2305.9,2305.2,0.768]
[1750706673625,8.5448471,2306.5,2305.6,5.10617619]
[1750706673976,1.948,2306.4,2306.0,4.33643294]
[1750706674182,1.948,2306.4,2305.8,4.33677504]
[1750706674363,1.948,2306.4,2306.0,4.3364966]
[1750706675276,2.99728471,2306.4,2305.6,0.769]
[1750706675476,2.99728471,2306.4,2305.8,4.33678737]
[1750706675926,2.99728471,2306.4,2305.7,4.33699045]
[1750706676123,10.7977,2306.3,2305.6,4.33719659]
[1750706676347,10.7977,2306.3,2305.5,4.33734672]
[1750706676563,0.7816,2306.1,2305.4,4.3375435]
[1750706676937,0.7816,2306.1,2305.3,4.33782402]
[1750706677147,1.948,2306.0,2305.3,4.33782402]
[1750706677340,1.948,2306.0,2305.2,4.33791798]
[1750706677341,0.8054,2305.9,2305.2,4.33791798]
[1750706677675,0.8054,2305.8,2305.0,4.33829939]
[1750706677869,0.7962,2305.6,2305.0,4.33829939]
[1750706678073,1.948,2305.5,2304.8,4.33869625]
[1750706678256,1.3434,2305.4,2304.6,4.33914094]
[1750706678841,0.7934,2305.4,2304.7,4.33894998]
[1750706679049,0.7934,2305.4,2304.6,4.33906458]
[1750706679333,2.06754,2305.4,2304.6,4.33906458]
[1750706679753,2.06754,2305.4,2304.7,4.33893902]
[1750706679947,2.06754,2305.4,2304.6,4.33904461]
[1750706680226,1.948,2305.3,2304.6,4.33904461]
[1750706680867,1.948,2305.3,2304.7,4.33892042]
[1750706681727,2.52410674,2305.3,2304.6,4.33903741]
[1750706682167,0.57610674,2305.3,2304.6,4.33903741]
[1750706682472,1.949,2305.2,2304.7,4.33894286]
[1750706682654,1.949,2305.2,2304.6,4.33901793]
[1750706683165,1.949,2305.2,2304.7,4.33895034]
[1750706683669,1.949,2305.2,2304.6,4.33906171]
[1750706683845,1.949,2305.2,2304.7,4.33894327]
[1750706684670,1.949,2305.1,2304.8,4.33876801]
[1750706685177,1.949,2305.1,2304.7,4.33886182]
[1750706685479,1.949,2305.1,2304.6,4.33906678]
[1750706685643,1.949,2305.1,2304.8,4.33877125]
[1750706686045,0.7934,2305.4,2304.9,4.3385126]
[1750706686260,1.949,2305.2,2304.9,4.3385126]
[1750706686771,1.949,2305.2,2305.0,4.33831465]
[1750706687583,1.949,2305.2,2304.9,4.33851448]
[1750706688794,1.949,2305.2,2305.0,4.33839033]
[1750706689703,0.7934,2305.4,2304.9,4.33844265]
[1750706689873,2.7424,2305.4,2304.9,4.33841241]
[1750706690084,0.7663,2305.8,2305.0,0.7763]
[1750706690263,9.6863471,2305.9,2305.5,0.7763]
[1750706690456,9.6863471,2305.9,2305.5,5.11368078]
[1750706690457,7.7373471,2305.9,2305.5,5.11368078]
[1750706690955,7.7373471,2305.9,2305.7,4.33706087]
[1750706691181,7.7373471,2305.9,2305.6,4.33717251]
[1750706691385,0.7663,2306.1,2305.6,4.33713935]
[1750706691581,0.7663,2306.1,2305.7,4.33707628]
[1750706691986,0.7663,2306.1,2305.8,4.33686599]
[1750706692386,0.7663,2306.1,2305.7,4.33701222]
[1750706692585,0.7663,2306.1,2305.8,4.3368726]
[1750706692804,11.949,2306.2,2305.9,4.3366141]
[1750706692965,11.949,2306.2,2305.7,4.33691521]
[1750706692966,12.60827777,2306.2,2305.7,4.33691521]
[1750706693162,11.949,2306.2,2305.7,4.33691521]
[1750706693386,11.949,2306.2,2305.8,4.33685274]
[1750706693665,11.949,2306.2,2305.7,4.33698173]
[1750706694272,11.949,2306.2,2305.7,4.13698173]
[1750706695267,11.949,2306.2,2305.6,4.33717777]
[1750706695474,11.949,2306.2,2305.7,4.33707495]
[1750706696479,11.949,2306.2,2305.8,4.33687909]
[1750706696678,2.7143,2306.3,2305.9,4.33657412]
[1750706697090,11.948,2306.5,2305.9,4.33665069]
[1750706697287,11.948,2306.5,2305.9,4.33656354]
[1750706699021,11.948,2306.5,2305.9,4.23656354]
[1750706699878,11.948,2306.5,2305.6,8.0743]
[1750706700072,0.7758,2306.4,2305.7,4.33698367]
[1750706700288,0.7758,2306.4,2305.6,8.0743]
[1750706700485,0.7758,2306.4,2305.3,10.0]
[1750706700692,0.7764,2306.2,2305.4,4.33746383]
[1750706700893,0.7764,2306.2,2305.4,4.33754965]
[1750706701182,0.7764,2306.1,2305.1,0.7983]